bitfinex-derivatives/quotes_SOLF0:USTF0_20251006
["timestamp","ask_amount","ask_price","bid_price","bid_amount"]
[1759784273834,7.52,233.94,233.92,3.49093805]
[1759784274035,3.8451,233.95,233.89,7.52]
[1759784274238,7.52,233.94,233.9,3.49098571]
[1759784274535,7.52,233.94,233.91,3.49098571]
[1759784274834,7.52,233.94,233.92,3.49098571]
[1759784275034,7.52,233.94,233.89,7.52]
[1759784275234,7.52,233.94,233.9,3.49086713]
[1759784275435,3.8451,233.95,233.91,3.49086713]
[1759784275631,3.8451,233.95,233.92,3.49086713]
[1759784275833,3.8451,233.95,233.89,7.52]
[1759784276134,7.52,233.94,233.9,3.49075406]
[1759784276335,7.52,233.94,233.91,3.49075406]
[1759784276536,7.52,233.94,233.92,3.49075406]
[1759784276739,7.52,233.94,233.86,3.59458396]
[1759784276939,7.52,233.92,233.87,3.4781184]
[1759784277237,7.52,233.89,233.88,3.4781184]
[1759784277634,11.366,233.89,233.88,3.4781184]
[1759784277834,11.366,233.89,233.82,3.59458396]
[1759784278039,11.366,233.89,233.83,3.47860022]
[1759784278239,7.52,233.88,233.84,3.47860022]
[1759784278441,3.846,233.89,233.85,3.47860022]
[1759784278737,11.3663,233.87,233.86,3.47860022]
[1759784278933,7.52,233.87,233.86,3.47860022]
[1759784279139,7.52,233.89,233.86,3.47860022]
[1759784279340,7.52,233.89,233.87,3.47860022]
[1759784279642,7.52,233.89,233.82,3.59458396]
[1759784279838,7.52,233.89,233.83,3.47765639]
[1759784280038,10.5860609,233.9,233.84,3.47765639]
[1759784280336,6.9119609,233.9,233.85,3.47765639]
[1759784280533,7.52,233.89,233.86,3.47765639]
[1759784280736,7.52,233.89,233.87,3.47765639]
[1759784281037,7.52,233.89,233.82,11.11458396]
[1759784281038,14.4319609,233.9,233.82,11.11458396]
[1759784281238,14.4319609,233.9,233.83,3.47731506]
[1759784281439,7.52,233.9,233.84,10.99731506]
[1759784281739,7.52,233.9,233.86,7.52]
[1759784282042,7.52,233.9,233.87,3.47731506]
[1759784282238,7.52,233.9,233.88,3.47731506]
[1759784282442,7.52,233.9,233.86,7.52]
[1759784282644,7.52,233.9,233.87,3.47708915]
[1759784282834,7.52,233.9,233.88,3.47708915]
[1759784283035,7.52,233.9,233.89,3.47689856]
[1759784283241,11.3656,233.92,233.89,3.47689856]
[1759784283445,11.3656,233.92,233.9,3.47689856]
[1759784283647,11.3656,233.92,233.86,7.52]
[1759784283946,7.52,233.91,233.87,10.9970991]
[1759784284244,7.52,233.91,233.88,3.4770991]
[1759784284444,7.52,233.91,233.89,3.4770991]
[1759784284645,7.52,233.91,233.9,3.4770991]
[1759784285743,3.8456,233.92,233.9,3.4770991]
[1759784285945,11.3656,233.92,233.91,3.4770991]
[1759784287446,3.8456,233.92,233.91,3.4770991]
[1759784287651,23.61612468,233.98,233.91,3.4770991]
[1759784287952,23.61612468,233.98,233.92,3.4770991]
[1759784288150,11.3642,234.01,233.93,10.9970991]
[1759784288353,11.3642,234.01,233.94,3.4770991]
[1759784288647,11.3642,234.01,233.95,3.4770991]
[1759784288850,7.52,234.0,233.96,3.4770991]
[1759784289051,7.52,234.0,233.93,7.52]
[1759784289350,7.52,234.0,233.94,3.47924173]
[1759784289550,7.52,234.02,233.95,3.47924173]
[1759784289747,7.52,234.02,233.9,11.0833725]
[1759784290053,3.8448,233.97,233.91,3.48005071]
[1759784290249,7.52,233.98,233.92,3.48005071]
[1759784290454,7.52,233.98,233.93,3.48005071]
[1759784290649,7.52,233.93,233.87,47.1233725]
[1759784290950,3.0660609,233.96,233.88,3.48154752]
[1759784291147,7.52,233.9,233.89,3.48154752]
[1759784291454,7.52,233.9,233.89,3.48304711]
[1759784291654,62.8766609,233.96,233.89,3.48304711]
[1759784291655,3.8456,233.92,233.89,3.48304711]
[1759784291955,7.52,233.91,233.9,3.48304711]
[1759784296357,3.8456,233.92,233.9,3.48304711]
[1759784296656,3.8456,233.92,233.91,3.48304711]
[1759784296958,11.3656,233.92,233.91,3.48304711]
[1759784300063,3.8456,233.92,233.91,3.48304711]
[1759784300362,3.8456,233.92,233.91,7.05254615]
[1759784301259,3.8456,233.92,233.91,3.48304711]
[1759784301761,3.8456,233.92,233.91,7.07434907]
[1759784303263,3.8456,233.92,233.91,3.48304711]
[1759784304063,11.3756,233.92,233.91,7.07518718]
[1759784307363,11.3756,233.92,233.91,3.48304711]
[1759784309262,11.3756,233.92,233.91,7.07897178]
[1759784310960,7.53,233.97,233.91,3.48304711]
[1759784311161,2.824224,233.96,233.92,7.07962808]
[1759784311358,7.53,233.96,233.93,3.48304711]
[1759784311571,2.824224,233.95,233.92,3.4401283]
[1759784311767,59.8119,233.95,233.87,4.73709272]
[1759784311961,7.53,233.93,233.87,4.73709272]
[1759784312466,7.53,233.88,233.87,4.73709272]
[1759784312667,104.38,233.93,233.81,7.49]
[1759784312866,2.80047286,233.92,233.83,7.49]
[1759784313072,7.53,233.94,233.87,1.96497337]
[1759784313365,3.8455,233.93,233.87,1.96497337]
[1759784313557,10.33172422,233.95,233.88,7.49]
[1759784313762,2.80172422,233.94,233.88,7.49]
[1759784313961,7.53,233.95,233.88,7.49]
[1759784314169,2.80236621,233.94,233.88,7.49]
[1759784314566,3.8457,233.91,233.88,7.49]
[1759784316572,3.8457,233.91,233.85,7.39]
[1759784317766,3.8457,233.91,233.85,7.10563908]
[1759784318165,3.8457,233.91,233.86,7.39]
[1759784318673,3.8457,233.91,233.85,7.10563908]
[1759784319674,3.8457,233.91,233.86,7.39]
[1759784320171,6.64805145,233.94,233.86,7.39]
[1759784321675,3.8455,233.93,233.86,7.39]
[1759784322274,2.80275145,233.94,233.87,7.39]
[1759784322477,11.375,233.95,233.87,1.96497337]
[1759784322678,11.375,233.95,233.88,7.39]
[1759784330183,3.8453,233.94,233.88,7.39]
[1759784330683,23.27665109,233.98,233.88,7.39]
[1759784330885,7.25,233.96,233.88,7.58]
[1759784331086,7.25,233.96,233.91,7.58]
[1759784331386,3.8448,233.96,233.9,1.96497337]
[1759784331784,3.8448,233.96,233.89,7.58]
[1759784331982,7.25,233.95,233.89,7.58]
[1759784333177,11.0951,233.95,233.89,7.58]
[1759784333379,7.25,233.95,233.87,7.10563908]
[1759784333577,1.92129958,233.96,233.86,18.53203908]
[1759784333782,4.95496047,233.97,233.86,14.68563908]
[1759784333983,7.25,233.96,233.86,7.58]
[1759784334180,10.2399871,233.96,233.86,7.58]
[1759784334379,3.8456,233.92,233.86,14.68563908]
[1759784334579,11.0956,233.92,233.86,14.68563908]
[1759784338688,3.8452,233.95,233.87,7.58]
[1759784338991,5.76809543,233.95,233.87,14.68563908]
[1759784339286,3.8452,233.95,233.87,14.68563908]
[1759784339687,3.8452,233.95,233.88,3.8461]
[1759784342590,3.8452,233.95,233.9,4.80303399]
[1759784342885,3.8452,233.95,233.9,12.38303399]
[1759784343082,7.25,233.94,233.9,12.38303399]
[1759784343689,7.25,233.94,233.91,7.58]
[1759784345086,11.0953,233.94,233.9,4.80303399]
[1759784345289,3.8453,233.94,233.9,4.80303399]
[1759784345589,7.25,233.93,233.9,4.80303399]
[1759784345986,7.25,233.93,233.9,12.38303399]
[1759784346686,3.8453,233.94,233.9,12.38303399]
[1759784347088,7.25,233.93,233.9,12.38303399]
[1759784351893,7.25,233.93,233.91,7.58]
[1759784356492,1.96497337,233.96,233.9,4.80303399]
[1759784356696,5.81047337,233.92,233.87,4.80303399]
[1759784356895,5.81047337,233.92,233.86,4.80303399]
[1759784357594,3.8458,233.91,233.86,4.80303399]
[1759784357795,7.25,233.9,233.87,7.58]
[1759784358090,1.96497337,233.92,233.86,4.80303399]
[1759784358296,7.63,233.88,233.86,4.80303399]
[1759784358696,7.63,233.88,233.86,12.20303399]
[1759784358896,1.96497337,233.89,233.87,7.4]
[1759784360000,1.96497337,233.89,233.85,4.80303399]
[1759784360195,1.96497337,233.89,233.86,7.4]
[1759784360401,1.96497337,233.89,233.86,4.80303399]
[1759784360794,1.96497337,233.89,233.87,7.4]
[1759784361001,1.96497337,233.89,233.86,4.80303399]
[1759784361397,1.96497337,233.89,233.87,7.4]
[1759784361594,1.96497337,233.89,233.86,4.80303399]
[1759784361802,1.96497337,233.89,233.87,7.4]
[1759784362905,12.10232522,234.01,233.87,7.4]
[1759784362906,7.63,233.97,233.87,12.20303399]
[1759784363098,1.96497337,233.94,233.88,7.4]
[1759784363701,3.8806183,233.94,233.88,7.4]
[1759784364199,3.8455,233.92,233.87,4.80303399]
[1759784364399,3.8455,233.92,233.88,7.4]
[1759784364801,3.8455,233.92,233.87,4.80303399]
[1759784365003,3.8455,233.92,233.88,7.4]
[1759784365500,3.8455,233.92,233.87,4.80303399]
[1759784366206,3.8455,233.92,233.88,7.4]
[1759784366400,3.8455,233.92,233.87,4.80303399]
[1759784366606,3.8455,233.92,233.88,7.4]
[1759784366905,3.8455,233.92,233.87,4.80303399]
[1759784367108,3.8455,233.92,233.88,7.4]
[1759784367498,3.8455,233.92,233.87,4.80303399]
[1759784367903,3.8455,233.92,233.88,7.4]
[1759784368303,3.8455,233.92,233.87,4.80303399]
[1759784368504,3.8455,233.92,233.88,7.4]
[1759784369405,3.8455,233.92,233.87,4.80303399]
[1759784370001,3.8455,233.92,233.88,7.4]
[1759784370204,3.8455,233.92,233.87,4.80303399]
[1759784370403,5.76084493,233.94,233.88,7.4]
[1759784370709,3.8806183,233.94,233.88,7.4]
[1759784371207,7.63,233.95,233.88,7.4]
[1759784371410,1.96497337,233.94,233.88,7.4]
[1759784371709,9.59497337,233.94,233.91,10.9996498]
[1759784372808,7.63,233.93,233.91,10.9996498]
[1759784373308,7.63,233.91,233.9,3.5996498]
[1759784373608,7.63,233.91,233.89,3.5996498]
[1759784374609,11.4757,233.91,233.89,3.5996498]
[1759784374809,7.63,233.9,233.89,3.5996498]
[1759784375307,11.476,233.89,233.87,3.5996498]
[1759784375512,3.07229837,233.88,233.85,3.5996498]
[1759784375709,3.8463,233.87,233.85,3.5996498]
[1759784375912,3.07229837,233.88,233.84,3.5996498]
[1759784376208,7.51,233.87,233.84,3.5996498]
[1759784376612,7.51,233.87,233.83,3.5996498]
[1759784376813,3.8466,233.85,233.83,3.5996498]
[1759784377013,7.51,233.84,233.83,3.5996498]
[1759784377312,7.51,233.84,233.82,3.5996498]
[1759784378617,3.847,233.83,233.82,3.5996498]
[1759784379119,3.847,233.83,233.81,3.5996498]
[1759784379320,3.847,233.83,233.81,11.4896498]
[1759784380021,3.847,233.83,233.82,7.89]
[1759784380222,11.357,233.83,233.81,3.5996498]
[1759784380417,7.51,233.82,233.81,3.5996498]
[1759784380623,3.8473,233.81,233.79,3.5996498]
[1759784380818,7.51,233.8,233.78,3.5996498]
[1759784381318,7.51,233.78,233.76,3.5996498]
[1759784382019,7.51,233.78,233.75,11.4896498]
[1759784382824,3.8476,233.79,233.75,3.5996498]
[1759784383019,7.51,233.78,233.75,3.5996498]
[1759784383219,3.8476,233.79,233.74,3.5996498]
[1759784383422,3.8476,233.79,233.74,11.4896498]
[1759784383722,3.07229837,233.8,233.7,107.9091]
[1759784383723,7.51,233.76,233.73,3.5996498]
[1759784384319,7.51,233.76,233.72,3.5996498]
[1759784384521,7.51,233.76,233.71,3.5996498]
[1759784385021,3.848,233.77,233.71,3.5996498]
[1759784385324,7.51,233.76,233.71,3.5996498]
[1759784385526,11.3583,233.76,233.7,3.5996498]
[1759784385826,11.3583,233.76,233.69,11.4896498]
[1759784387223,11.3583,233.76,233.69,7.89]
[1759784388320,7.77,233.73,233.69,7.89]
[1759784388624,7.77,233.73,233.66,7.73]
[1759784389019,3.8483,233.75,233.66,11.3296498]
[1759784389225,3.8483,233.75,233.66,7.73]
[1759784389825,3.8486,233.74,233.66,7.73]
[1759784390217,11.6186,233.74,233.66,7.73]
[1759784390525,7.77,233.74,233.66,7.73]
[1759784390727,3.8488,233.72,233.66,7.73]
[1759784391420,7.77,233.71,233.66,7.73]
[1759784391627,7.77,233.7,233.66,7.73]
[1759784392123,7.77,233.7,233.63,3.5996498]
[1759784392432,7.77,233.7,233.64,7.73]
[1759784392723,11.6193,233.7,233.64,7.73]
[1759784394529,3.8494,233.69,233.64,7.73]
[1759784394727,7.77,233.68,233.64,7.73]
[1759784395223,3.8494,233.69,233.64,7.73]
[1759784395425,7.77,233.68,233.64,7.73]
[1759784396228,7.77,233.71,233.61,11.3296498]
[1759784396432,7.77,233.71,233.62,7.73]
[1759784397627,11.6191,233.71,233.62,7.73]
[1759784397930,7.77,233.71,233.62,7.73]
[1759784399327,3.8492,233.7,233.62,7.73]
[1759784399734,3.8492,233.7,233.58,104.12]
[1759784399735,7.77,233.71,233.59,7.73]
[1759784399926,10.84229837,233.72,233.59,11.3296498]
[1759784400225,10.84229837,233.72,233.6,7.73]
[1759784400226,7.77,233.72,233.6,7.73]
[1759784400528,10.84229837,233.71,233.61,7.73]
[1759784400732,7.77,233.71,233.61,7.73]
[1759784402027,7.77,233.71,233.63,3.8502]
[1759784402228,7.77,233.71,233.64,7.73]
[1759784402730,3.07229837,233.71,233.61,7.73]
[1759784402930,7.77,233.7,233.61,7.73]
[1759784403630,3.8496,233.68,233.61,7.73]
[1759784403840,7.77,233.74,233.61,7.73]
[1759784405537,3.8493,233.69,233.61,7.73]
[1759784406939,11.619,233.71,233.62,7.73]
[1759784407341,11.619,233.71,233.63,7.73]
[1759784408442,7.77,233.71,233.63,7.73]
[1759784409339,3.8494,233.69,233.63,7.73]
[1759784409940,7.77,233.71,233.64,7.73]
[1759784411344,11.6191,233.71,233.64,7.73]
[1759784411741,7.77,233.71,233.64,7.73]
[1759784412538,3.8492,233.7,233.64,7.73]
[1759784413441,7.77,233.75,233.67,7.42082076]
[1759784413742,3.8481,233.77,233.69,7.73]
[1759784413933,3.8481,233.77,233.69,11.30122076]
[1759784414535,3.8481,233.77,233.69,15.15032076]
[1759784414936,11.6181,233.77,233.69,15.15032076]
[1759784415134,11.6181,233.77,233.69,11.30122076]
[1759784416842,11.6181,233.77,233.69,3.57122076]
[1759784417043,11.6181,233.77,233.7,7.73]
[1759784417245,11.6181,233.77,233.7,11.30122076]
[1759784418145,11.6181,233.77,233.71,3.57122076]
[1759784419251,7.3391,233.77,233.7,7.73]
[1759784420646,3.8483,233.76,233.7,7.73]
[1759784423353,3.8483,233.76,233.7,11.30122076]
[1759784425154,7.87,233.79,233.7,7.73]
[1759784425357,7.87,233.76,233.69,3.57122076]
[1759784425658,7.87,233.76,233.67,3.57122076]
[1759784426158,7.87,233.76,233.68,3.57122076]
[1759784426556,3.8489,233.72,233.68,3.57122076]
[1759784426757,11.7189,233.72,233.68,10.85122076]
[1759784427554,3.8489,233.72,233.68,10.85122076]
[1759784427756,7.87,233.71,233.68,7.28]
[1759784429148,7.87,233.71,233.68,10.85122076]
[1759784429350,7.87,233.71,233.69,3.57122076]
[1759784431153,3.8489,233.72,233.69,3.57122076]
[1759784431655,7.87,233.71,233.69,3.57122076]
[1759784435658,3.8489,233.72,233.69,3.57122076]
[1759784435861,7.87,233.77,233.71,3.57122076]
[1759784436063,7.87,233.77,233.73,10.85122076]
[1759784436562,7.51,233.79,233.73,10.85122076]
[1759784437164,7.51,233.77,233.73,10.85122076]
[1759784437464,1.9680233,233.78,233.73,11.28122076]
[1759784437657,11.3582,233.76,233.73,11.28122076]
[1759784439068,3.8482,233.76,233.73,11.28122076]
[1759784439965,11.3582,233.76,233.73,11.28122076]
[1759784440466,3.8484,233.75,233.73,11.28122076]
[1759784440968,11.3584,233.75,233.73,11.28122076]
[1759784441963,3.8484,233.75,233.73,11.28122076]
[1759784442164,3.8484,233.75,233.74,7.71]
[1759784444368,3.8484,233.75,233.74,11.28122076]
[1759784445875,3.848,233.77,233.75,7.71]
[1759784446074,7.51,233.77,233.74,7.71]
[1759784446372,7.51,233.77,233.72,3.57122076]
[1759784446675,7.51,233.8,233.73,7.71]
[1759784447569,3.8482,233.76,233.72,3.57122076]
[1759784448072,3.8482,233.76,233.73,7.4]
[1759784448477,3.8482,233.76,233.72,3.57122076]
[1759784448672,3.8482,233.76,233.73,7.4]
[1759784449073,3.8482,233.76,233.72,3.57122076]
[1759784449285,3.8482,233.76,233.73,7.4]
[1759784449685,3.8482,233.76,233.72,3.57122076]
[1759784450487,3.8482,233.76,233.74,7.4]
[1759784451183,3.8482,233.76,233.73,3.57122076]
[1759784451484,3.8482,233.76,233.74,7.4]
[1759784451987,7.51,233.8,233.74,7.4]
[1759784451988,7.51,233.8,233.74,10.97122076]
[1759784452592,3.8479,233.78,233.74,10.97122076]
[1759784452785,3.8479,233.78,233.75,7.4]
[1759784452989,3.8479,233.78,233.74,3.57122076]
[1759784453284,3.8479,233.78,233.75,7.4]
[1759784453491,3.8479,233.78,233.74,5.53924406]
[1759784455192,3.8479,233.78,233.75,7.4]
[1759784455491,3.8479,233.78,233.74,1.9680233]
[1759784455793,3.8479,233.78,233.74,5.56528934]
[1759784456088,19.39937306,233.83,233.75,3.59726604]
[1759784456288,12.02937306,233.83,233.78,3.59726604]
[1759784456593,12.02937306,233.83,233.8,3.59726604]
[1759784456991,12.02937306,233.83,233.81,7.4]
[1759784457188,12.02937306,233.83,233.81,10.99726604]
[1759784458492,15.87647306,233.83,233.81,10.99726604]
[1759784459283,15.87647306,233.83,233.81,7.4]
[1759784459497,15.87647306,233.83,233.8,3.59726604]
[1759784459794,15.87647306,233.83,233.81,7.4]
[1759784460698,12.02937306,233.83,233.81,7.4]
[1759784461596,3.8463,233.87,233.81,7.4]
[1759784461790,3.8463,233.87,233.83,3.59726604]
[1759784462191,1.9680233,233.9,233.83,3.59726604]
[1759784462491,1.9680233,233.87,233.81,10.99726604]
[1759784462692,9.3380233,233.87,233.81,10.99726604]
[1759784463095,9.3380233,233.87,233.81,7.4]
[1759784463491,3.8469,233.84,233.81,7.4]
[1759784463895,11.2169,233.84,233.81,7.4]
[1759784464796,3.8469,233.84,233.81,7.4]
[1759784465196,11.2169,233.84,233.81,7.4]
[1759784468097,11.2169,233.84,233.77,1.9680233]
[1759784468098,7.37,233.81,233.78,7.4]
[1759784468297,7.37,233.81,233.76,3.59726604]
[1759784468499,7.37,233.81,233.77,7.4]
[1759784468999,7.37,233.81,233.76,3.59726604]
[1759784469201,7.37,233.81,233.75,3.59726604]
[1759784469592,11.2172,233.82,233.75,10.99726604]
[1759784471600,3.8474,233.81,233.75,10.99726604]
[1759784471899,5.8154233,233.81,233.75,7.4]
[1759784472098,5.8154233,233.81,233.75,10.99726604]
[1759784475303,1.9680233,233.81,233.75,10.99726604]
[1759784475498,1.9680233,233.81,233.77,3.59726604]
[1759784475704,1.9680233,233.84,233.79,7.4]
[1759784475901,7.37,233.86,233.79,10.99726604]
[1759784476111,1.9680233,233.87,233.8,10.99726604]
[1759784476403,1.9680233,233.87,233.81,10.99726604]
[1759784477503,3.8463,233.87,233.81,14.84446604]
[1759784478201,3.8463,233.87,233.81,11.2472]
[1759784478800,3.8463,233.87,233.81,14.83406338]
[1759784479501,1.9680233,233.88,233.81,14.83406338]
[1759784480107,1.9680233,233.88,233.82,3.58686338]
[1759784480711,1.9680233,233.88,233.82,7.43386338]
[1759784480902,1.9680233,233.88,233.83,7.68]
[1759784481206,13.7639233,233.9,233.83,7.68]
[1759784483011,7.95,233.9,233.83,11.5269]
[1759784483214,9.9180233,233.9,233.83,11.5269]
[1759784484310,9.9180233,233.9,233.84,7.68]
[1759784485209,1.9680233,233.91,233.84,11.5267]
[1759784485512,1.9680233,233.91,233.85,7.68]
[1759784487508,5.8138233,233.91,233.85,7.68]
[1759784488105,13.7638233,233.91,233.85,7.68]
[1759784489508,7.95,233.89,233.85,7.68]
[1759784489708,0.74430542,233.96,233.84,3.58686338]
[1759784490007,1.9680233,233.9,233.86,7.68]
[1759784490409,1.9680233,233.9,233.85,7.43336338]
[1759784491303,1.9680233,233.9,233.86,7.68]
[1759784491509,85.36558466,233.99,233.87,7.68]
[1759784491510,1.9680233,233.93,233.87,7.68]
[1759784491711,1.9680233,233.93,233.88,7.68]
[1759784492108,1.9680233,233.93,233.87,3.58686338]
[1759784492905,1.9680233,233.88,233.85,3.58686338]
[1759784493113,7.95,233.87,233.82,3.58686338]
[1759784493308,1.9680233,233.82,233.81,3.58686338]
[1759784493508,1.9680233,233.85,233.81,3.58686338]
[1759784493712,1.9680233,233.85,233.82,7.68]
[1759784493910,9.9180233,233.85,233.82,7.68]
[1759784494106,3.8468,233.84,233.82,11.26686338]
[1759784494311,11.7968,233.84,233.82,3.58686338]
[1759784494510,11.7968,233.84,233.81,3.58686338]
[1759784495213,13.7648233,233.84,233.82,3.58686338]
[1759784496912,8.03,233.83,233.81,3.58686338]
[1759784499507,8.03,233.87,233.81,11.59686338]
[1759784499714,11.10351176,233.92,233.84,3.58686338]
[1759784501613,3.8463,233.88,233.84,3.58686338]
[1759784502716,3.8463,233.88,233.85,8.01]
[1759784504419,11.8763,233.88,233.85,8.01]
[1759784505715,8.03,233.88,233.85,8.01]
[1759784505920,3.8458,233.91,233.86,3.58686338]
[1759784506221,11.8758,233.91,233.87,8.01]
[1759784506516,8.03,233.91,233.86,3.58686338]
[1759784506817,12.57849878,233.99,233.88,8.01]
[1759784506818,8.03,233.95,233.88,8.01]
[1759784507021,8.03,233.95,233.88,11.59686338]
[1759784507423,3.8451,233.95,233.9,3.58686338]
[1759784507623,11.10351176,233.96,233.91,8.01]
[1759784507922,11.10351176,233.96,233.9,11.59686338]
[1759784508125,11.10351176,233.96,233.9,8.01]
[1759784508325,3.07351176,233.96,233.9,11.59686338]
[1759784508518,3.8447,233.97,233.9,11.59686338]
[1759784510125,3.8447,233.97,233.9,8.01]
[1759784512225,3.8447,233.97,233.88,3.846]
[1759784512226,3.8447,233.97,233.91,3.58686338]
[1759784512526,3.8447,233.97,233.93,7.66]
[1759784512715,3.8447,233.97,233.92,3.58686338]
[1759784512921,3.8447,233.97,233.93,7.66]
[1759784513228,3.8447,233.97,233.92,3.58686338]
[1759784513618,11.1647,233.97,233.93,7.66]
[1759784514322,11.1647,233.97,233.92,3.58686338]
[1759784515026,7.32,234.03,233.95,7.66]
[1759784515728,7.32,234.03,233.95,3.58686338]
[1759784516027,3.07351176,234.06,233.97,7.66]
[1759784516218,3.07351176,234.06,233.96,3.58686338]
[1759784516219,12.96705812,234.13,234.04,3.58686338]
[1759784516526,12.96705812,234.13,234.12,7.66]
[1759784516825,7.32,234.2,234.12,7.66]
[1759784517025,3.8411,234.19,234.12,7.66]
[1759784517220,7.32,234.2,234.12,7.66]
[1759784518128,59.7524,234.19,234.12,7.66]
[1759784518327,59.7524,234.19,234.06,85.88591837]
[1759784518328,7.32,234.18,234.07,7.66]
[1759784519027,7.32,234.15,234.07,7.66]
[1759784519928,3.8421,234.13,234.07,7.66]
[1759784521129,7.32,234.15,234.07,7.66]
[1759784523426,6.91461176,234.19,234.07,7.66]
[1759784523622,3.07351176,234.19,234.07,7.66]
[1759784524630,3.8414,234.17,234.07,7.66]
[1759784525132,3.8418,234.15,234.07,7.66]
[1759784527933,3.8413,234.18,234.07,7.66]
[1759784529530,3.8416,234.16,234.07,7.66]
[1759784532233,3.8416,234.16,234.07,11.503]
[1759784533538,3.8416,234.16,234.08,7.66]
[1759784535137,3.8419,234.15,234.08,7.66]
[1759784535343,7.32,234.16,234.08,7.66]
[1759784536341,3.8408,234.21,234.1,7.66]
[1759784536643,7.32,234.24,234.1,7.66]
[1759784537038,3.07351176,234.32,234.14,59.763]
[1759784537238,7.32,234.31,234.19,59.7505]
[1759784537444,7.32,234.31,234.2,7.66]
[1759784537636,7.32,234.31,234.2,20.41067121]
[1759784537835,7.32,234.31,234.21,7.66]
[1759784538545,7.32,234.31,234.22,3.8406]
[1759784538741,7.32,234.31,234.23,7.78]
[1759784539144,3.8384,234.35,234.23,7.78]
[1759784539343,7.67,234.34,234.23,7.78]
[1759784539644,7.67,234.34,234.24,43.78]
[1759784540147,3.8388,234.33,234.24,43.78]
[1759784540446,3.8388,234.33,234.23,11.6204]
[1759784540646,3.8388,234.33,234.23,66.0604]
[1759784540844,7.67,234.31,234.23,112.66]
[1759784542243,7.67,234.31,234.23,7.78]
[1759784542949,3.8396,234.29,234.23,7.78]
[1759784551954,7.67,234.31,234.19,16.88401097]
[1759784551955,7.67,234.28,234.19,70.02311097]
[1759784552155,7.67,234.28,234.19,73.55448378]
[1759784552652,7.67,234.28,234.19,60.51137281]
[1759784553657,3.8401,234.26,234.19,60.51137281]
[1759784553856,3.8401,234.26,234.2,7.78]
[1759784554058,3.8401,234.26,234.2,11.31137281]
[1759784556058,3.8401,234.26,234.21,3.53137281]
[1759784556362,3.8401,234.26,234.22,7.55]
[1759784556860,3.8401,234.26,234.21,3.53137281]
[1759784557063,3.8401,234.26,234.22,11.08137281]
[1759784557365,7.86,234.34,234.23,7.55]
[1759784557564,7.86,234.34,234.25,7.55]
[1759784557862,3.8389,234.32,234.25,7.55]
[1759784558163,7.86,234.34,234.26,7.55]
[1759784559164,7.86,234.34,234.26,11.08137281]
[1759784559564,11.6986,234.34,234.26,11.08137281]
[1759784560358,11.6986,234.34,234.27,3.53137281]
[1759784560555,3.8389,234.33,234.27,3.53137281]
[1759784560754,3.07351176,234.36,234.27,3.53137281]
[1759784560954,62.78211176,234.36,234.26,11.08137281]
[1759784561160,9.81893449,234.3,234.27,3.53137281]
[1759784562866,9.81893449,234.3,234.27,11.08137281]
[1759784563964,13.65833449,234.3,234.27,11.08137281]
[1759784565263,7.86,234.28,234.27,3.53137281]
[1759784565462,7.86,234.28,234.26,3.53137281]
[1759784565662,1.95893449,234.27,234.26,3.53137281]
[1759784566062,5.79873449,234.27,234.26,3.53137281]
[1759784569571,13.58873449,234.27,234.25,3.53137281]
[1759784570867,3.8401,234.25,234.23,3.53137281]
[1759784571063,9.74893449,234.24,234.22,3.58023243]
[1759784571270,7.79,234.23,234.17,4.70849708]
[1759784571467,1.95893449,234.19,234.17,7.35]